bitfinex-derivatives/quotes_BTCF0:USTF0_20250308
["timestamp","ask_amount","ask_price","bid_price","bid_amount"]
[1741404564218,0.2103,85710.0,85709.0,0.00015107]
[1741404564405,0.2103,85710.0,85709.0,0.11685757]
[1741404564925,0.2103,85710.0,85709.0,0.14932002]
[1741404565223,0.2103,85710.0,85709.0,0.09114599]
[1741404566226,0.2103,85710.0,85709.0,0.09128523]
[1741404568423,0.2103,85710.0,85709.0,0.03260169]
[1741404568612,0.3270051,85710.0,85709.0,0.03260169]
[1741404571321,0.1167065,85709.0,85708.0,0.70926766]
[1741404571514,0.1167065,85709.0,85708.0,0.70866766]
[1741404571713,0.3216065,85709.0,85708.0,0.70866766]
[1741404572207,0.1167078,85708.0,85707.0,0.00017499]
[1741404572398,0.4775078,85708.0,85707.0,0.03213818]
[1741404572590,0.6824078,85708.0,85707.0,0.00032302]
[1741404572989,0.3216078,85708.0,85707.0,0.00032302]
[1741404573194,0.6824078,85708.0,85707.0,0.00032302]
[1741404574296,0.5657,85708.0,85700.0,0.04389917]
[1741404574494,0.1167174,85701.0,85700.0,0.07649374]
[1741404574840,0.4775174,85701.0,85700.0,0.07649374]
[1741404575295,0.4775174,85701.0,85700.0,0.07661034]
[1741404575503,0.6886174,85701.0,85700.0,0.07661034]
[1741404577402,0.6886174,85701.0,85700.0,0.01843631]
[1741404577603,0.6886174,85701.0,85700.0,0.0001166]
[1741404580404,0.116731,85691.0,85690.0,0.08322367]
[1741404580598,0.0583625,85696.0,85686.0,0.1167377]
[1741404580794,0.105,85690.0,85686.0,0.1167377]
[1741404580995,0.1055,85689.0,85687.0,0.0659]
[1741404581203,0.1055,85689.0,85688.0,0.1167351]
[1741404581505,0.1055,85689.0,85688.0,0.11685415]
[1741404581805,0.1055,85689.0,85688.0,0.22945415]
[1741404583510,0.1055,85689.0,85688.0,0.17128012]
[1741404584299,0.3608,85715.0,85690.0,0.0583662]
[1741404584533,0.3608,85715.0,85709.0,0.1167056]
[1741404584729,0.116697,85716.0,85710.0,0.066]
[1741404584923,0.07904,85721.0,85710.0,0.217]
[1741404585221,0.1166937,85719.0,85712.0,0.1167011]
[1741404585415,0.3608,85725.0,85710.0,0.217]
[1741404585615,0.00017499,85724.0,85710.0,0.1703]
[1741404585819,0.1167012,85713.0,85710.0,0.3115811]
[1741404586018,0.1167078,85708.0,85707.0,0.00017499]
[1741404586455,0.058353,85710.0,85701.0,0.00800096]
[1741404586625,0.2180103,85707.0,85701.0,0.00800096]
[1741404587238,0.2180103,85707.0,85701.0,0.12471826]
[1741404588517,0.1167108,85706.0,85701.0,0.00800096]
[1741404588720,0.1167108,85706.0,85700.0,0.2579993]
[1741404589012,0.0985,85705.0,85700.0,0.2579993]
[1741404589605,0.0985,85705.0,85700.0,0.1167182]
[1741404590609,0.0583566,85704.0,85698.0,0.1043]
[1741404590911,0.1750832,85698.0,85695.0,0.1412811]
[1741404591105,0.0583612,85698.0,85692.0,0.1167291]
[1741404591304,0.1052,85697.0,85692.0,0.1167291]
[1741404592107,0.1052,85697.0,85693.0,0.1167281]
[1741404592505,0.1052,85697.0,85693.0,0.05855407]
[1741404593311,0.1167263,85695.0,85689.0,0.1722]
[1741404593506,0.1019,85694.0,85689.0,0.2889336]
[1741404594710,0.1009,85693.0,85689.0,0.2889336]
[1741404594907,0.03528569,85693.0,85689.0,0.2889336]
[1741404595110,0.1019,85692.0,85689.0,0.3356336]
[1741404595309,0.1019,85692.0,85691.0,0.116731]
[1741404595503,0.1019,85692.0,85689.0,0.16072597]
[1741404595711,0.1019,85692.0,85691.0,0.116731]
[1741404597613,0.1019,85692.0,85689.0,0.16072597]
[1741404597808,0.1019,85692.0,85688.0,0.00011905]
[1741404598321,0.1022,85691.0,85688.0,0.00011905]
[1741404598709,0.099,85690.0,85688.0,0.04044502]
[1741404599114,0.1022,85689.0,85688.0,0.15718012]
[1741404600123,0.1022,85689.0,85688.0,0.15731503]
[1741404600817,0.04971191,85689.0,85688.0,0.15731503]
[1741404601018,0.099,85690.0,85689.0,0.1167337]
[1741404601624,0.099,85690.0,85689.0,0.05855967]
[1741404603518,0.099,85690.0,85689.0,0.25235967]
[1741404603720,0.099,85690.0,85689.0,0.05855967]
[1741404604521,0.099,85690.0,85688.0,0.00013491]
[1741404604725,0.1081,85689.0,85686.0,0.1167369]
[1741404604916,0.1081,85689.0,85688.0,0.1167351]
[1741404605724,0.00017499,85705.0,85686.0,0.04018872]
[1741404605923,0.1081,85697.0,85696.0,0.1167242]
[1741404606325,0.00017499,85705.0,85704.0,0.1167133]
[1741404607035,0.11688689,85705.0,85704.0,0.03920713]
[1741404607228,0.00017499,85705.0,85702.0,0.1167153]
[1741404608127,0.00017499,85705.0,85702.0,0.15692405]
[1741404608334,0.00017499,85705.0,85704.0,0.1167133]
[1741404608834,0.00017499,85705.0,85702.0,0.04020875]
[1741404609026,0.1097,85710.0,85702.0,0.116715]
[1741404609423,0.1056,85709.0,85702.0,0.116715]
[1741404609631,0.1056,85709.0,85700.0,0.0583593]
[1741404609823,0.1097,85708.0,85703.0,0.1167142]
[1741404610435,0.1031,85707.0,85703.0,0.1167142]
[1741404610633,0.1031,85707.0,85703.0,0.2334282]
[1741404610834,0.1031,85707.0,85703.0,0.17525417]
[1741404610835,0.1097,85706.0,85703.0,0.17525417]
[1741404611021,0.1097,85706.0,85703.0,0.05854017]
[1741404611226,0.1031,85705.0,85704.0,0.1167133]
[1741404612932,0.1031,85705.0,85702.0,0.0583578]
[1741404612933,0.36148,85725.0,85702.0,0.03945948]
[1741404613130,0.3608,85725.0,85723.0,0.1166874]
[1741404613432,0.3608,85725.0,85709.0,0.3608]
[1741404613433,0.3608,85725.0,85724.0,0.2188861]
[1741404613635,0.3608,85725.0,85724.0,0.1022]
[1741404613833,0.3608,85725.0,85724.0,0.04402597]
[1741404614035,0.04625062,85733.0,85732.0,0.1166752]
[1741404614223,0.04642561,85733.0,85732.0,0.4774752]
[1741404614429,0.04642561,85733.0,85732.0,0.3608]
[1741404614824,0.09751427,85737.0,85732.0,0.3608]
[1741404615036,0.0643,85744.0,85733.0,0.1048]
[1741404615229,0.00011207,85745.0,85733.0,0.1048]
[1741404615435,0.1166752,85732.0,85731.0,0.1042]
[1741404616737,0.2182752,85732.0,85731.0,0.1042]
[1741404616936,0.3265752,85732.0,85731.0,0.04602597]
[1741404617157,0.2099,85732.0,85731.0,0.04602597]
[1741404617345,0.3265752,85732.0,85731.0,0.04602597]
[1741404617737,0.6873752,85732.0,85731.0,0.04602597]
[1741404619043,0.5707,85732.0,85731.0,0.04602597]
[1741404619743,0.5707,85732.0,85731.0,0.14752597]
[1741404619945,0.5707,85732.0,85725.0,0.1069]
[1741404619946,0.5707,85732.0,85724.0,0.04094187]
[1741404620146,0.1166847,85725.0,85721.0,0.3608]
[1741404620342,0.2058,85724.0,85721.0,0.3608]
[1741404620546,0.3224861,85724.0,85721.0,0.3608]
[1741404621044,0.1166888,85722.0,85721.0,0.3608]
[1741404621242,0.3808306,85724.0,85721.0,0.3608]
[1741404621748,0.1166875,85723.0,85721.0,0.3608]
[1741404622136,0.2008,85722.0,85721.0,0.3608]
[1741404622542,0.3608,85732.0,85727.0,0.1166809]
[1741404622734,0.0996,85731.0,85728.0,0.1083]
[1741404622934,0.1166787,85730.0,85728.0,0.05012597]
[1741404623140,0.2008,85731.0,85729.0,0.1074]
[1741404623344,0.1166769,85731.0,85729.0,0.1074]
[1741404624244,0.3608,85732.0,85729.0,0.1074]
[1741404624544,0.1042,85743.0,85736.0,0.1166691]
[1741404624739,0.1042,85743.0,85737.0,0.1074]
[1741404625145,0.2208605,85743.0,85737.0,0.1074]
[1741404625539,0.1042,85743.0,85739.0,0.1166656]
[1741404626050,0.1042,85743.0,85739.0,0.05861402]
[1741404626347,0.00011207,85745.0,85739.0,0.05861402]
[1741404626642,0.3608,85748.0,85747.0,0.1166548]
[1741404627038,0.2,85750.0,85746.0,0.1058]
[1741404627246,0.2,85750.0,85749.0,0.116652]
[1741404627842,0.3608,85768.0,85749.0,0.116652]
[1741404628045,0.3608,85768.0,85745.0,0.4191284]
[1741404628046,0.3608,85768.0,85761.0,0.0583175]
[1741404628251,0.00017499,85767.0,85766.0,0.1166278]
[1741404628453,0.00017499,85767.0,85761.0,0.03991025]
[1741404628641,0.00017499,85767.0,85761.0,0.1166352]
[1741404629040,0.00017499,85767.0,85759.0,0.1166377]
[1741404629245,0.00017499,85767.0,85758.0,0.2785608]
[1741404629246,0.00017499,85767.0,85758.0,0.2202411]
[1741404629545,0.00017499,85767.0,85765.0,0.1166294]
[1741404630045,0.00017499,85767.0,85766.0,0.1166289]
[1741404630450,0.00017499,85767.0,85763.0,0.3608]
[1741404631545,0.1166357,85761.0,85760.0,0.00013291]
[1741404631753,0.4774357,85761.0,85760.0,0.00013291]
[1741404631949,0.1042,85766.0,85750.0,0.12372659]
[1741404632140,0.1166492,85752.0,85750.0,0.12372659]
[1741404632343,0.0583227,85754.0,85745.0,0.3608]
[1741404632548,0.1166561,85746.0,85745.0,0.3608]
[1741404632850,0.3608,85752.0,85745.0,0.39986652]
[1741404633049,0.3608,85752.0,85746.0,9.721e-05]
[1741404633357,0.1166548,85747.0,85746.0,9.721e-05]
[1741404633844,0.1036,85753.0,85746.0,9.721e-05]
[1741404634250,0.1036,85753.0,85746.0,0.10569721]
[1741404634754,0.1166499,85751.0,85746.0,0.10569721]
[1741404634956,0.116651,85750.0,85746.0,0.04752318]
[1741404635248,0.1037,85750.0,85745.0,0.39986652]
[1741404636043,0.1037,85750.0,85746.0,8.685e-05]
[1741404637753,0.1037,85750.0,85746.0,0.11674205]
[1741404638853,0.1037,85750.0,85746.0,8.685e-05]
[1741404639054,0.1037,85750.0,85748.0,0.1166533]
[1741404640246,0.1037,85750.0,85749.0,0.116652]
[1741404641152,0.1166404,85758.0,85750.0,0.11665]
[1741404641344,0.01436629,85846.0,85749.0,0.0994]
[1741404641345,0.1044,85757.0,85754.0,0.1166448]
[1741404641547,0.1044,85757.0,85752.0,0.1166476]
[1741404643050,0.1025,85756.0,85752.0,0.1166476]
[1741404643358,0.1025,85756.0,85751.0,0.0583243]
[1741404643558,0.1013,85755.0,85754.0,0.1166439]
[1741404643852,0.0357385,85755.0,85753.0,0.1166466]
[1741404644051,0.1025,85754.0,85753.0,0.05847257]
[1741404645560,0.1025,85754.0,85753.0,0.1041]
[1741404646055,0.1025,85754.0,85753.0,0.2115]
[1741404646256,0.1025,85754.0,85753.0,0.1074]
[1741404646257,0.2191452,85754.0,85753.0,0.1074]
[1741404646461,0.0583252,85751.0,85745.0,0.03906652]
[1741404646656,0.1166548,85747.0,85745.0,0.03906652]
[1741404647168,0.0583264,85749.0,85742.0,0.08827934]
[1741404647353,0.1166602,85743.0,85742.0,0.08827934]
[1741404648065,0.1055,85744.0,85742.0,0.08827934]
[1741404648254,0.1055,85744.0,85742.0,0.13774177]
[1741404648255,0.1089,85743.0,85742.0,0.13774177]
[1741404650056,0.2255602,85743.0,85742.0,0.13774177]
[1741404650257,0.1089,85743.0,85742.0,0.07956774]
[1741404650457,0.1089,85743.0,85742.0,0.04946243]
[1741404650458,0.2255602,85743.0,85742.0,0.04946243]
[1741404652057,0.2255602,85743.0,85742.0,0.00013907]
[1741404652058,0.5863602,85743.0,85742.0,0.00013907]
[1741404653169,0.4697,85743.0,85733.0,0.08342113]
[1741404653351,0.4774724,85734.0,85733.0,0.08342113]
[1741404653557,0.1166806,85728.0,85727.0,0.00174946]
[1741404653757,0.1166806,85728.0,85727.0,0.05096627]
[1741404653957,0.1166806,85728.0,85727.0,0.00174946]
[1741404654154,0.05109308,85728.0,85727.0,0.00188977]
[1741404654350,0.26079308,85728.0,85727.0,0.00188977]
[1741404656367,0.1166841,85726.0,85724.0,0.13588558]
[1741404656559,0.1166841,85726.0,85725.0,0.1066]
[1741404657358,0.1166841,85726.0,85725.0,0.10670251]
[1741404658069,0.1166841,85726.0,85725.0,0.00010251]
[1741404658363,0.4774841,85726.0,85725.0,0.00010251]
[1741404659269,0.0583389,85731.0,85719.0,0.67722347]
[1741404659567,0.0583389,85731.0,85720.0,0.2443811]
[1741404659759,0.0583376,85732.0,85723.0,0.1166866]
[1741404659964,0.18132,85733.0,85724.0,0.1031]
[1741404659965,0.1166817,85728.0,85724.0,0.1031]
[1741404660368,0.18132,85733.0,85725.0,8.273e-05]
[1741404660574,0.1166833,85726.0,85725.0,8.273e-05]
[1741404660757,0.1024,85733.0,85728.0,0.1166793]
[1741404660962,0.1024,85733.0,85732.0,0.1166752]
[1741404661156,0.00017499,85736.0,85735.0,0.1166711]
[1741404661758,0.00017499,85736.0,85735.0,0.2234711]
[1741404661963,0.00017499,85736.0,85735.0,0.3235711]
[1741404662360,0.00017499,85736.0,85735.0,0.26539707]
[1741404663161,0.00017499,85736.0,85735.0,0.34431707]
[1741404664471,0.2186514,85750.0,85740.0,0.1166637]
[1741404664669,0.2186514,85750.0,85743.0,0.3608]
[1741404664874,0.102,85750.0,85743.0,0.3608]
[1741404665075,0.1166526,85749.0,85743.0,0.3608]
[1741404665370,0.0583242,85752.0,85743.0,0.3608]
[1741404665371,0.1166411,85758.0,85747.0,0.116654]
[1741404665668,0.00017499,85755.0,85748.0,0.3488811]
[1741404665893,0.11681909,85755.0,85748.0,0.2076]
[1741404666071,0.00017499,85755.0,85748.0,0.3242526]
[1741404666272,0.00017499,85755.0,85752.0,0.1166478]
[1741404666473,0.00017499,85755.0,85753.0,0.209]
[1741404666773,0.11681989,85755.0,85753.0,0.1011]
[1741404667073,0.00017499,85755.0,85753.0,0.1011]
[1741404668476,0.00017499,85755.0,85753.0,0.04292597]
[1741404669063,0.00017499,85755.0,85753.0,0.15957167]
[1741404669262,0.00017499,85755.0,85754.0,0.2280452]
[1741404669976,0.00017499,85755.0,85754.0,0.1114]
[1741404670171,0.00017499,85755.0,85753.0,0.04292597]
[1741404671171,0.1166466,85753.0,85752.0,0.05032633]
[1741404671478,0.36097499,85755.0,85737.0,0.00017499]
[1741404671674,0.116667,85738.0,85737.0,0.00017499]
[1741404671887,0.477467,85738.0,85737.0,0.00017499]
[1741404672973,0.1166711,85735.0,85725.0,8.273e-05]
[1741404673174,0.1166833,85726.0,85725.0,8.273e-05]
[1741404673383,0.3608,85726.0,85725.0,8.273e-05]
[1741404674376,0.3608,85726.0,85725.0,0.11676743]
[1741404674581,0.3184024,85726.0,85725.0,0.1375134]
[1741404675184,0.3184024,85726.0,85725.0,0.07892]
[1741404675477,0.3184024,85726.0,85725.0,0.18026283]
[1741404675883,0.1092,85728.0,85725.0,0.18026283]
[1741404676078,0.11684829,85734.0,85726.0,0.5794828]
[1741404676286,0.1022,85727.0,85726.0,0.4628]
[1741404676583,0.1022,85727.0,85726.0,0.564]
[1741404677679,0.1022,85727.0,85726.0,0.50582597]
[1741404678683,0.1022,85727.0,85726.0,0.462]
[1741404678885,0.1166833,85726.0,85725.0,0.00014283]
[1741404679198,0.16259907,85726.0,85725.0,0.00014283]
[1741404679577,0.1115,85726.0,85725.0,0.00014283]
[1741404679978,0.1115,85726.0,85725.0,0.00871927]
[1741404680179,0.1115,85726.0,85725.0,0.00014283]
[1741404680379,0.2281833,85726.0,85725.0,0.00014283]
[1741404680581,0.1166915,85720.0,85719.0,0.61841728]
[1741404680893,0.0583448,85722.0,85719.0,0.61841728]
[1741404681085,0.2121,85721.0,85719.0,0.61841728]
[1741404681275,0.2121,85721.0,85719.0,0.66900236]
[1741404681582,0.2121,85721.0,85720.0,0.0001473]
[1741404682079,0.3287901,85721.0,85720.0,0.0001473]
[1741404683574,0.2121,85721.0,85719.0,0.56959148]
[1741404683777,0.2121,85721.0,85719.0,0.67179148]
[1741404684078,0.1166915,85720.0,85719.0,0.56899148]
[1741404684278,0.2121,85721.0,85719.0,0.56899148]
[1741404684482,0.2101,85720.0,85719.0,0.56899148]
[1741404684777,0.2101,85720.0,85719.0,0.67128002]
[1741404685188,0.2101,85720.0,85719.0,0.78797292]
[1741404685389,0.2101,85720.0,85719.0,0.67128002]
[1741404686585,0.2101,85720.0,85719.0,0.60450506]
[1741404686787,0.1012,85720.0,85719.0,0.7299983]
[1741404686982,0.1012,85720.0,85719.0,0.7997983]
[1741404687286,0.03561178,85720.0,85719.0,0.7997983]
[1741404688486,0.1031,85725.0,85724.0,0.1166861]
[1741404688686,0.1031,85725.0,85724.0,0.4774861]
[1741404689279,0.1031,85725.0,85724.0,0.6524861]
[1741404689680,0.1031,85725.0,85724.0,0.59431207]
[1741404689877,0.03751929,85725.0,85724.0,0.59431207]
[1741404690987,0.1047,85733.0,85732.0,0.1166752]
[1741404691876,0.1106,85754.0,85748.0,0.1166528]
[1741404692082,0.1047,85753.0,85749.0,0.2043]
[1741404692995,0.1047,85753.0,85751.0,0.1166486]
[1741404693186,0.1015,85752.0,85751.0,0.1166486]
[1741404693386,0.1015,85752.0,85751.0,0.11679462]
[1741404693891,0.1015,85752.0,85751.0,0.00014602]
[1741404694390,0.1015,85752.0,85751.0,0.11679532]
[1741404695306,0.1015,85752.0,85751.0,0.1660159]
[1741404695486,0.1047,85753.0,85752.0,0.116648]
[1741404695681,0.1047,85753.0,85752.0,0.05853617]
[1741404695884,0.00017499,85760.0,85759.0,0.1166384]
[1741404696185,0.00017499,85760.0,85759.0,0.4774384]
[1741404698793,0.00017499,85760.0,85759.0,0.41932657]
[1741404699189,0.00017499,85760.0,85759.0,0.3608]
[1741404699488,0.00017499,85760.0,85753.0,0.1166458]
[1741404699792,0.00017499,85760.0,85757.0,0.1166408]
[1741404700383,0.116648,85752.0,85751.0,0.05804576]
[1741404700788,0.116648,85752.0,85751.0,0.00882518]
[1741404701091,0.2142,85753.0,85751.0,0.05790827]
[1741404701290,0.2142,85753.0,85751.0,0.04922911]
[1741404701882,0.2142,85753.0,85746.0,0.1166558]
[1741404701883,0.2142,85753.0,85746.0,0.15788708]
[1741404702089,0.1166548,85747.0,85746.0,0.050114]
[1741404702397,0.1166568,85746.0,85743.0,0.3608]
[1741404702695,0.3321577,85745.0,85743.0,0.3608]
[1741404702889,0.3321577,85745.0,85744.0,0.00011274]
[1741404703085,0.3321577,85745.0,85744.0,0.04897063]
[1741404703285,0.3321577,85745.0,85744.0,0.00011274]
[1741404703686,0.1166602,85743.0,85742.0,0.00897958]
[1741404704393,0.4774602,85743.0,85742.0,0.00897958]
[1741404704787,0.2155,85745.0,85734.0,0.06107578]
[1741404704993,0.1166683,85738.0,85734.0,0.06107578]
[1741404705197,0.1166608,85743.0,85736.0,0.1166684]
[1741404705595,0.3608,85744.0,85734.0,0.17774698]
[1741404705895,0.1098,85745.0,85739.0,0.1166645]
[1741404706095,0.1098,85745.0,85735.0,9.724e-05]
[1741404706393,0.1098,85745.0,85735.0,0.11676804]
[1741404706394,0.1166608,85743.0,85735.0,0.11676804]
[1741404706902,0.1089,85742.0,85735.0,0.11676804]
[1741404707197,0.1089,85742.0,85741.0,0.4774629]
[1741404707791,0.1089,85742.0,85741.0,0.41935107]
[1741404707997,0.00017499,85760.0,85748.0,0.0583262]
[1741404708195,0.00017499,85760.0,85759.0,0.1166384]
[1741404708785,0.1084,85773.0,85759.0,0.00011899]
[1741404708999,0.1084,85773.0,85772.0,0.1166208]
[1741404709396,0.1084,85773.0,85772.0,0.0575995]
[1741404709601,0.1084,85773.0,85768.0,0.1106]
[1741404709898,0.1084,85773.0,85769.0,0.1166242]
[1741404710096,0.1084,85773.0,85768.0,0.1106]
[1741404710097,0.1166232,85771.0,85768.0,0.1106]
[1741404710297,0.1084,85773.0,85768.0,0.1106]
[1741404710692,0.3608,85777.0,85770.0,0.1166225]
[1741404710906,0.3608,85777.0,85769.0,0.1166244]
[1741404710907,0.3608,85777.0,85769.0,0.05851257]
[1741404711099,0.1087,85776.0,85771.0,0.1166215]
[1741404711297,0.1087,85776.0,85772.0,0.1025]
[1741404711502,0.1087,85776.0,85775.0,0.1166167]
[1741404712493,0.1087,85776.0,85775.0,0.4774167]
[1741404713007,0.1087,85776.0,85775.0,0.3608]
[1741404713696,0.1087,85776.0,85775.0,0.564]
[1741404713901,0.1087,85776.0,85775.0,0.50588817]
[1741404715200,0.1087,85776.0,85775.0,0.30268817]
[1741404716001,0.1087,85776.0,85775.0,0.41930487]
[1741404716205,0.1087,85776.0,85775.0,0.53907531]
[1741404717003,0.1087,85776.0,85775.0,0.48096348]
[1741404720004,0.1087,85776.0,85775.0,0.42285165]
[1741404721307,0.1087,85776.0,85775.0,0.30623495]
[1741404721503,0.00012369,85787.0,85775.0,0.30623495]
[1741404721704,0.1034,85786.0,85785.0,0.1166031]
[1741404721908,0.1034,85786.0,85784.0,0.2076]
[1741404722105,0.1034,85786.0,85779.0,0.07888]
[1741404722312,0.1166099,85780.0,85779.0,0.07888]
[1741404722703,0.1166135,85778.0,85776.0,0.00010695]
[1741404723004,0.116614,85777.0,85775.0,0.12845963]
[1741404723202,0.116614,85777.0,85771.0,0.20647488]
[1741404723203,0.3608,85776.0,85771.0,0.10047488]
[1741404723406,0.1166208,85772.0,85771.0,0.00017488]
[1741404723606,0.1001,85775.0,85771.0,0.00017488]
[1741404723807,0.1166195,85773.0,85771.0,0.10047488]
[1741404724003,0.1001,85775.0,85772.0,8.985e-05]
[1741404724004,0.216718,85775.0,85772.0,8.985e-05]
[1741404724205,0.116618,85775.0,85772.0,8.985e-05]
[1741404724407,0.36148,85776.0,85772.0,8.985e-05]
[1741404724611,0.3608,85776.0,85772.0,8.985e-05]
[1741404724813,0.2265172,85775.0,85772.0,8.985e-05]
[1741404725808,0.1682085,85775.0,85772.0,8.985e-05]
[1741404726006,0.1099,85775.0,85756.0,0.00202819]
[1741404726318,0.0583121,85770.0,85760.0,0.1412811]
[1741404726615,0.2099,85769.0,85763.0,0.1166324]
[1741404726816,0.2099,85769.0,85765.0,0.1166294]
[1741404727010,0.2099,85769.0,85766.0,0.21478359]
[1741404727718,0.14434633,85769.0,85766.0,0.21478359]
[1741404728925,0.3608,85767.0,85766.0,8.359e-05]
[1741404729110,0.3608,85767.0,85760.0,0.19912511]
[1741404729111,0.3608,85767.0,85760.0,0.14109687]
[1741404729312,0.1166349,85762.0,85760.0,0.14109687]
[1741404729613,0.1166357,85761.0,85760.0,0.05784401]
[1741404729816,0.1166371,85760.0,85758.0,0.00017488]
[1741404730013,0.0583238,85753.0,85733.0,0.1022]
[1741404730218,0.4774629,85741.0,85740.0,0.1412811]
[1741404730523,0.4774629,85741.0,85734.0,0.10400861]
[1741404730911,0.1091,85740.0,85737.0,0.1166671]
[1741404731110,0.1091,85740.0,85738.0,0.1039]
[1741404731311,0.1091,85740.0,85738.0,0.2061]
[1741404732120,0.1091,85740.0,85738.0,0.14798817]
[1741404732636,0.116667,85738.0,85737.0,0.05721898]
[1741404732812,0.1091,85740.0,85734.0,0.00010861]
[1741404733007,0.1166711,85735.0,85734.0,0.00010861]
[1741404733616,0.1091,85736.0,85734.0,0.00010861]
[1741404733817,0.106,85735.0,85734.0,0.05731011]
[1741404734757,0.2126,85735.0,85734.0,0.05731011]
[1741404735141,0.2126,85735.0,85734.0,0.10929828]
[1741404735332,0.2126,85735.0,85734.0,0.21709828]
[1741404736238,0.2126,85735.0,85734.0,0.10795035]
[1741404736436,0.2126,85735.0,85734.0,0.16755254]
[1741404737546,0.2126,85735.0,85734.0,0.28422494]
[1741404737747,0.1066,85735.0,85734.0,0.28422494]
[1741404738144,0.1066,85735.0,85734.0,0.16755254]
[1741404738347,0.1066,85735.0,85734.0,0.05975254]
[1741404739151,0.2232711,85735.0,85734.0,0.05975254]
[1741404740155,0.2232711,85735.0,85734.0,0.00015035]
[1741404740449,0.1066,85735.0,85734.0,0.00015035]
[1741404740656,0.1066,85735.0,85734.0,0.10185035]
[1741404740846,0.1066,85735.0,85734.0,0.1601002]
[1741404741059,0.1066,85735.0,85734.0,0.2767726]
[1741404741268,0.1066,85735.0,85734.0,0.21866077]
[1741404741465,0.1066,85735.0,85734.0,0.32046077]
[1741404742156,0.3608,85741.0,85740.0,0.1166643]
[1741404742356,0.1071,85746.0,85745.0,0.1166575]
[1741404742747,0.2101,85746.0,85745.0,0.1166575]
[1741404743245,0.2101,85746.0,85740.0,0.00012691]
[1741404743444,0.2101,85746.0,85745.0,0.3102575]
[1741404743641,0.2101,85746.0,85745.0,0.1166575]
[1741404744242,0.2101,85746.0,85745.0,0.05854567]
[1741404744642,0.2101,85746.0,85745.0,0.41934567]
[1741404745153,0.2101,85746.0,85745.0,0.1166575]
[1741404746049,0.1071,85746.0,85745.0,0.1166575]
[1741404746251,0.00017488,85747.0,85746.0,0.1166561]
[1741404746745,0.00017488,85747.0,85746.0,0.2192561]
[1741404747350,0.00017488,85747.0,85746.0,0.1026]
[1741404747746,0.00017488,85747.0,85740.0,0.00882811]
[1741404747948,0.116658,85745.0,85740.0,0.08770811]
[1741404748150,0.2135,85744.0,85740.0,0.08770811]
[1741404748354,0.1166629,85741.0,85740.0,0.00882811]
[1741404748646,0.1166629,85741.0,85730.0,0.00017488]
[1741404748647,0.1166765,85731.0,85730.0,0.00017488]
[1741404748850,0.3608,85734.0,85730.0,0.00017488]
[1741404749057,0.4717,85734.0,85730.0,0.00017488]
[1741404749247,0.1066,85733.0,85730.0,0.00017488]
[1741404749647,0.107,85732.0,85731.0,0.00011314]
[1741404750051,0.2236752,85732.0,85731.0,0.00011314]
[1741404750349,0.2236752,85732.0,85731.0,3.975e-05]
[1741404750556,0.1166765,85731.0,85730.0,0.00017488]
[1741404751350,0.1166765,85731.0,85730.0,0.00027893]
[1741404751948,0.2189765,85731.0,85730.0,0.00027893]
[1741404752551,0.2189765,85731.0,85730.0,0.05736745]
[1741404752748,0.1023,85731.0,85730.0,0.05736745]
[1741404753360,0.1023,85731.0,85725.0,0.84403562]
[1741404753656,0.1023,85731.0,85725.0,0.84343562]
[1741404753657,0.1105,85730.0,85725.0,0.84343562]
[1741404754059,0.1023,85729.0,85725.0,0.84343562]
[1741404754457,0.1105,85728.0,85726.0,8.737e-05]
[1741404754851,0.1084,85727.0,85726.0,8.737e-05]
[1741404755047,0.1084,85727.0,85726.0,0.05704768]
[1741404755362,0.1084,85727.0,85726.0,8.737e-05]
[1741404755773,0.585882,85727.0,85726.0,8.737e-05]
[1741404756463,0.1166833,85726.0,85725.0,0.67531116]
[1741404756654,0.2235833,85726.0,85725.0,0.67531116]
[1741404756855,0.3319833,85726.0,85725.0,0.67531116]
[1741404757460,0.3319833,85726.0,85725.0,0.67540615]
[1741404757663,0.3319833,85726.0,85725.0,9.499e-05]
[1741404757863,0.2153,85726.0,85725.0,9.499e-05]
[1741404759551,0.2153,85726.0,85721.0,0.1166894]
[1741404759865,0.2153,85726.0,85720.0,0.1166908]
[1741404760554,0.2153,85726.0,85721.0,0.00012186]
[1741404761064,0.2153,85726.0,85725.0,0.1166847]
[1741404761363,0.2153,85726.0,85723.0,0.1955665]
[1741404761665,0.2153,85726.0,85724.0,0.1089]
[1741404761862,0.3608,85749.0,85724.0,0.1089]
[1741404762166,0.1018,85734.0,85730.0,0.1412811]
[1741404762462,0.3608,85731.0,85723.0,0.02076817]
[1741404762761,0.1166888,85722.0,85715.0,0.13899094]
[1741404763265,0.1166888,85722.0,85715.0,0.06011094]
[1741404763666,0.3226888,85722.0,85715.0,0.06011094]
[1741404764556,0.6834888,85722.0,85715.0,0.06011094]
[1741404764751,0.5668,85722.0,85715.0,0.06011094]
[1741404764959,0.206,85722.0,85716.0,0.2222]
[1741404765156,0.206,85722.0,85716.0,0.3388968]
[1741404765559,0.206,85722.0,85716.0,0.28108171]
[1741404765861,0.206,85722.0,85721.0,0.1166901]
[1741404766063,0.206,85722.0,85720.0,0.1166908]
[1741404766254,0.206,85722.0,85721.0,0.1107]
[1741404766660,0.206,85722.0,85721.0,0.11079176]
[1741404767059,0.206,85722.0,85721.0,9.176e-05]
[1741404768063,0.206,85722.0,85721.0,0.11678186]
[1741404768674,0.206,85722.0,85721.0,0.16097003]
[1741404768969,0.3608,85724.0,85723.0,0.1166874]
[1741404769565,0.3608,85724.0,85723.0,0.3231874]
[1741404769764,0.3608,85724.0,85723.0,0.32329464]
[1741404770968,0.3608,85724.0,85723.0,0.20660724]
[1741404771268,0.3608,85724.0,85723.0,0.00010724]
[1741404771769,0.3608,85724.0,85720.0,0.1166915]
[1741404771969,0.2117,85723.0,85720.0,0.1166915]
[1741404772274,0.2117,85723.0,85721.0,0.1166891]
[1741404772572,0.2117,85723.0,85721.0,0.2213891]
[1741404772772,0.2117,85723.0,85722.0,0.00013232]
[1741404773275,0.2117,85723.0,85722.0,0.22332112]
[1741404774166,0.2117,85723.0,85722.0,0.00013232]
[1741404774767,0.2117,85723.0,85718.0,0.2231939]
[1741404775069,0.2117,85723.0,85715.0,0.06011094]
[1741404775275,0.1166892,85722.0,85715.0,0.16661094]
[1741404775671,0.2049,85721.0,85716.0,8.706e-05]
[1741404775861,0.2049,85721.0,85716.0,0.11678316]
[1741404776174,0.2049,85721.0,85716.0,0.22448316]
[1741404776472,0.1166933,85719.0,85716.0,0.10778706]